Cogmind - Beta 16 @@@ ROGUE MODE // 2025.11.24 @ 23:12:20 Player: the Result: Core destroyed Performance ------------- Evolutions (3) 1500 Regions Visited (12) 2400 Robots Destroyed (173) 865 Value Destroyed (4870) 4870 Prototype IDs (30) 600 Alien Tech Used (0) 0 Bonus (300) 300 TOTAL SCORE: 10535 Bonus ------- Met Data Miner 300 Cogmind --------- Core Integrity 0/700 Matter 208/300 Energy 72/310 System Corruption 0% Temperature Critical (520) Movement Walking (125) Location -6/Proximity Caves Parts ------- > --- POWER (1) -------- Reinforced Fission Core > --- PROPULSION (5) --- Light Armored Exoskeleton Enhanced Flexi-carbon Leg Advanced Myomer Leg Advanced Myomer Leg > --- UTILITY (4) ------ Advanced Heat Sink High-capacity Storage Unit Layered Medium Armor Plating Experimental Thermal Shield > --- WEAPON (3) ------- Neutron Cannon Neutron Cannon > --- INVENTORY (20) --- Improved Deuterium Engine Enhanced Flexi-carbon Leg Enhanced Flexi-carbon Leg Enhanced Flexi-carbon Leg Enhanced Flexi-carbon Leg Enhanced Flexi-carbon Leg Advanced Heat Sink Advanced Heat Sink Seismic Detector Matter Filter Advanced Particle Charger Advanced Particle Charger Advanced Weapon Cycler Transmission Jammer Experimental Thermal Shield Tesla Rifle Tesla Rifle Heavy Rocket Launcher Rocket Array Chainsword Peak State ------------ > --- POWER ------------ Reinforced Fission Core > --- PROPULSION ------- Light Armored Exoskeleton Enhanced Flexi-carbon Leg Advanced Myomer Leg Advanced Myomer Leg > --- UTILITY ---------- Advanced Heat Sink High-capacity Storage Unit Layered Medium Armor Plating Experimental Thermal Shield > --- WEAPON ----------- Neutron Cannon Neutron Cannon > --- INVENTORY -------- Improved Deuterium Engine Enhanced Flexi-carbon Leg Enhanced Flexi-carbon Leg Enhanced Flexi-carbon Leg Enhanced Flexi-carbon Leg Enhanced Flexi-carbon Leg Advanced Heat Sink Advanced Heat Sink Seismic Detector Matter Filter Advanced Particle Charger Advanced Particle Charger Advanced Weapon Cycler Transmission Jammer Experimental Thermal Shield Tesla Rifle Tesla Rifle Heavy Rocket Launcher Rocket Array Chainsword [Rating: 82] Favorites ----------- Power Improved Deuterium Engine Engine Improved Deuterium Engine Power Core Reinforced Fission Core Propulsion Advanced Treads Treads Advanced Treads Leg Advanced Myomer Leg Wheel Compact Wheel Utility Seismic Detector Device Seismic Detector Storage High-capacity Storage Unit Processor Melee Analysis Suite Protection Medium Reactive Plating Weapon Minigun Energy Gun Small Laser Energy Cannon Plasma Cannon Ballistic Gun Minigun Ballistic Cannon Light Cannon Launcher Heavy Rocket Launcher Special Weapon Mining Laser Slashing Weapon Chainsword Build | -11 -10 -10 -9 -9 -9 -8 -8 -7 -7 -7 -7 -6 ------- Run | Yrd Mat Min Mat Min Exi Min Mat Fac Low Low Dat Pro Slots Evolved 6 | . . . 2 . . . 2 2 . . . . Power . | . . . . . . . . . . . . . Propulsion 3 | . . . 1 . . . 1 1 . . . . Utility 2 | . . . . . . . 1 1 . . . . Weapon 1 | . . . 1 . . . . . . . . . Parts Attached 119 | 7 10 2 25 . 10 3 10 23 10 5 9 5 Power 13 | 1 1 1 3 . . 1 . 4 1 . . 1 Engine 11 | 1 1 1 3 . . 1 . 3 1 . . . Core 2 | . . . . . . . . 1 . . . 1 Reactor . | . . . . . . . . . . . . . Propulsion 33 | 2 2 . 8 . 3 1 4 6 3 3 1 . Treads 24 | . 2 . 6 . 2 1 4 6 3 . . . Leg 7 | 2 . . . . 1 . . . . 3 1 . Wheel 2 | . . . 2 . . . . . . . . . Hover . | . . . . . . . . . . . . . Flight . | . . . . . . . . . . . . . Utility 33 | 2 2 . 4 . 4 . 1 8 2 1 5 4 Device 16 | 1 . . 1 . 2 . . 5 1 . 3 3 Storage 6 | 1 2 . 1 . . . 1 1 . . . . Processor 1 | . . . . . . . . . . . 1 . Hackware . | . . . . . . . . . . . . . Protection 10 | . . . 2 . 2 . . 2 1 1 1 1 Artifact . | . . . . . . . . . . . . . Weapon 40 | 2 5 1 10 . 3 1 5 5 4 1 3 . Energy Gun 3 | 1 . . . . . . 1 1 . . . . Energy Cannon 4 | . . . . . . . . . 2 . 2 . Ballistic Gun 20 | 1 . . 7 . 3 1 4 2 2 . . . Ballistic Cannon 6 | . 4 1 1 . . . . . . . . . Launcher 4 | . . . 2 . . . . 1 . 1 . . Special Weapon 1 | . 1 . . . . . . . . . . . Impact Weapon . | . . . . . . . . . . . . . Slashing Weapon 2 | . . . . . . . . 1 . . 1 . Piercing Weapon . | . . . . . . . . . . . . . Special Melee Weapon . | . . . . . . . . . . . . . Unidentified Prototypes 13 | . . . 1 . 3 . 2 4 . . 3 . Parts Lost 23 | . . . 1 . 4 1 1 . 2 9 2 3 Power 2 | . . . . . . . . . . 1 . 1 Propulsion 8 | . . . 1 . 1 1 . . 1 4 . . Utility 6 | . . . . . 1 . . . . 2 1 2 Weapon 7 | . . . . . 2 . 1 . 1 2 1 . Highest Loss Streak 9 | . . . 1 . 4 1 1 . 1 9 2 1 To Critical Strikes 2 | . . . . . 2 . . . . . . . Average Backups 15 | 3 9 15 17 20 15 18 19 18 17 10 7 18 Power 1 | 1 1 1 1 1 1 2 2 1 1 1 . . Propulsion 2 | 1 . . 3 4 3 3 3 2 4 . 1 5 Utility 4 | . 3 5 4 5 3 5 3 4 5 4 4 10 Weapon 7 | . 5 9 8 10 6 8 9 9 6 3 1 3 Tool/Special . | . . . . . . . . . . . . . Unused Backups 53 | . 1 1 13 . 6 . 2 12 3 . 3 12 Power 7 | . . . 2 . 3 . . . . . 1 1 Propulsion 5 | . . . . . . . . . . . . 5 Utility 19 | . 1 1 5 . 3 . 1 2 . . 2 4 Weapon 21 | . . . 6 . . . . 10 3 . . 2 Tool/Special 1 | . . . . . . . 1 . . . . . Average Slot Usage (%) 94 | . 99 100 99 100 81 100 99 99 95 82 77 85 Engine 9 | . 14 14 11 11 11 11 9 7 7 6 7 . Treads 27 | . 18 28 30 33 33 33 35 38 37 5 . . Leg 5 | . 9 . . . . . . . . 24 30 30 Device 11 | . 14 14 10 8 6 3 9 15 13 8 7 14 Storage 9 | . 14 14 11 11 11 11 9 7 7 7 2 7 Protection 4 | . . . . 2 4 7 9 6 7 6 7 7 Energy Cannon 1 | . . . . . . . . . 6 7 2 15 Ballistic Gun 15 | . 2 . 27 30 13 32 27 21 12 6 . . Ballistic Cannon 5 | . 21 28 5 . . . . . . . . . Peak Build Rating 82 | 7 8 13 23 24 40 38 38 55 57 60 79 82 Average Rating 32 | 4 7 12 17 22 20 34 31 44 49 56 59 76 On Entrance 30 | . 7 8 13 22 22 31 33 29 49 49 60 78 Avg Prop Armor Cover (%) 13 | 22 18 . 14 . . . . . . . 3 . Naked Turns . | . . . . . . . . . . . . . Heaviest Build 108 | 11 32 36 59 60 64 65 66 85 106 92 85 108 Greatest Support 122 | 3 40 40 64 62 66 66 84 108 122 114 118 118 Greatest Overweight (x) 3 | 3 3 . 3 . 1 1 . . . 1 . . Average Overweight (x) . | 1 . . . . . . . . . . . . Largest Inventory Capacity 20 | 8 15 15 20 20 20 20 20 20 20 20 20 20 Average Capacity 17 | 6 11 15 18 20 20 20 20 20 20 20 10 20 Most Carried 20 | 7 15 15 20 20 20 19 20 20 20 20 20 20 Average Carried 16 | 4 9 14 17 20 15 18 19 19 19 11 7 18 Final Capacity 20 | 8 15 15 20 20 20 20 20 20 20 20 20 20 Final Carried 20 | 5 15 15 20 20 18 18 19 20 20 11 20 20 Class Distribution -------------------- 32% | Mutant 20% | Tank 18% | Scavenger-Tank 11% | Scavenger-Gunner 7% | Gunner 5% | Scavenger-Mutant 3% | Gladiator Dominant Class ---------------- Mutant | -10/Materials Mutant | -10/Mines Scavenger-Gunner | -9/Materials Scavenger-Gunner | -9/Mines Mutant | -9/Exiles Tank | -8/Mines Scavenger-Tank | -8/Materials Tank | -7/Factory Tank | -7/Lower Caves Scavenger-Tank | -7/Lower Caves Gladiator | -7/Data Miner Scavenger-Mutant | -6/Proximity Caves Resources | -11 -10 -10 -9 -9 -9 -8 -8 -7 -7 -7 -7 -6 ----------- Run | Yrd Mat Min Mat Min Exi Min Mat Fac Low Low Dat Pro Matter Collected 5255 | 282 380 263 899 100 554 396 542 608 687 207 182 155 Remotely . | . . . . . . . . . . . . . Salvage Created 6306 | 219 501 213 987 142 134 490 803 608 769 518 383 539 Parts 368 | 18 43 14 78 14 6 23 36 38 37 25 14 22 Haulers Intercepted 8 | . 1 . 4 . . . 3 . . . . . Recyclers Shooed 5 | 1 . 1 2 . . . 1 . . . . . Parts Field Recycled . | . . . . . . . . . . . . . Retrieved Matter . | . . . . . . . . . . . . . Parts Self-Destructed 73 | . . . . . . . . . 31 27 . 15 Prevented 4 | . . . . . . . . . . 4 . . Parts Restored . | . . . . . . . . . . . . . Kills | -11 -10 -10 -9 -9 -9 -8 -8 -7 -7 -7 -7 -6 ------- Run | Yrd Mat Min Mat Min Exi Min Mat Fac Low Low Dat Pro Combat Hostiles Destroyed 130 | . 12 8 18 8 6 12 9 9 16 17 4 11 Melee 4 | . . . . . . . . . . . 4 . Guns 54 | . 3 . 12 4 2 9 9 9 3 3 . . Cannons 48 | . 9 8 3 . . . . . 13 6 . 9 AOE 24 | . . . 3 4 4 3 . . . 8 . 2 Classes Destroyed 22 | 3 6 . 1 1 2 1 1 1 4 . . 2 Worker 8 | 1 4 . 1 . . . 1 1 . . . . Builder 4 | . 1 . 2 . . . . 1 . . . . Tunneler 7 | 5 . . 1 . . . . 1 . . . . Hauler 8 | . 1 . 4 . . . 3 . . . . . Recycler 11 | 1 1 1 3 1 . . 2 1 . . . 1 Minesweeper 1 | . . . . . . . . . 1 . . . Mechanic 1 | . 1 . . . . . . . . . . . Drone 2 | . . . . . . . . . . . . 2 Turret 1 | . . . . . 1 . . . . . . . Watcher 8 | . 3 . 2 . . . 1 . . . . 2 Swarmer 49 | . 5 6 10 7 . 4 . . 6 11 . . Saboteur 1 | . . . . . . . . . . . . 1 Grunt 37 | . 7 2 2 . . 7 4 3 5 3 . 4 Brawler 2 | . . . . . . 1 . . . . . 1 Duelist 4 | . . . . . . . . . 2 2 . . Sentry 17 | . . . 6 . . . 4 2 1 1 . 3 Demolisher 1 | . . . . 1 . . . . . . . . Hunter 1 | . . . . . . . 1 . . . . . Programmer 4 | . . . . . . . . 4 . . . . Behemoth 1 | . . . . . . . . . 1 . . . Enhanced Grunt 4 | . . . . . . . . . . . 4 . Decomposer 1 | . . . . . . . . . 1 . . . Assembled 5 | . . . . . 5 . . . . . . . Mutant 1 | . . . . . . . . . 1 . . . Best Kill Streak 6 | 6 6 6 6 6 5 4 4 3 4 4 2 3 Combat Bots Only 6 | . 3 6 4 4 5 4 3 2 4 4 2 3 Max Kills in Single Turn 4 | 1 2 2 4 3 2 3 1 1 1 3 1 1 Gunslinging 1 | . . . 1 . . . . . . . . . Exploded 3 | . . . 3 3 2 3 . . . 3 . 1 Melee 1 | . . . . . . . . . . . 1 . Uniques/NPCs Destroyed 1 | . . . . . 1 . . . . . . . 8R-AWN (-9/Exiles) Combat | -11 -10 -10 -9 -9 -9 -8 -8 -7 -7 -7 -7 -6 -------- Run | Yrd Mat Min Mat Min Exi Min Mat Fac Low Low Dat Pro Hostile Shots Fired 883 | . 60 38 75 12 58 34 78 87 120 117 28 176 Missed 222 | . 12 14 21 2 8 8 23 28 31 31 7 37 Hits 661 | . 48 24 54 10 50 26 55 59 89 86 21 139 Melee 16 | . . . . . 1 . . . 4 10 . 1 Projectile 645 | . 48 24 54 10 49 26 55 59 85 76 21 138 AOE 5 | . . . . 5 . . . . . . . . Critical Strikes 48 | . 2 . 1 . 26 3 2 2 2 6 . 4 Damage Taken 10005 | . 460 209 626 314 920 405 777 520 1483 1516 903 1872 Core 1320 | . 62 41 145 10 171 51 84 34 197 220 43 262 Absorbed by Shields . | . . . . . . . . . . . . . Ignored by Resistances 693 | . . . . . . . . 52 189 80 . 372 Regen/Repaired (Parts) 76 | . . . . . . . . 76 . . . . Core Remaining (%) 61 | 100 . 58 . . . 5 84 . . . . . Volleys Fired 392 | 14 53 14 53 8 36 19 42 25 58 26 . 44 Largest 3 | 2 2 2 3 3 3 3 3 3 3 3 . 2 Hottest 190 | 60 100 60 90 69 79 76 76 80 160 190 . 180 Shots Fired 933 | 28 104 29 155 21 81 54 126 75 130 50 . 80 Gun 597 | 28 14 . 114 19 70 53 126 75 81 17 . . Cannon 309 | . 87 29 39 . . . . . 49 28 . 77 Launcher 24 | . . . 2 2 11 1 . . . 5 . 3 Special 3 | . 3 . . . . . . . . . . . Kinetic 731 | 14 94 29 153 19 70 53 126 75 81 17 . . Thermal 178 | 14 10 . . . . . . . 49 28 . 77 Explosive 24 | . . . 2 2 11 1 . . . 5 . 3 Electromagnetic . | . . . . . . . . . . . . . Robot Hit Streak 26 | 7 5 7 16 4 18 19 12 22 26 11 . 13 Robot Miss Streak 6 | 2 6 4 4 1 2 1 6 4 3 3 . 6 Penetration Max 1 | . . . . . . 1 . . . . . . Secondary Targets 8 | . 2 . 2 1 . 1 1 . 1 . . . Max Gunslinging Chain 1 | . 1 . 1 1 . 1 1 . 1 . . . Shots Hit Robots 607 | 16 37 16 92 10 59 41 81 61 100 29 21 44 Core Hits 292 | 10 23 10 46 8 28 20 28 23 34 21 12 29 Critical Kills 7 | . . . . . . 3 1 2 . 1 . . Critical Parts Destroyed 7 | . . . . . . 3 . 4 . . . . Critical Strikes 26 | . 2 1 1 . . 6 1 7 . 1 7 . Destroy 15 | . . . . . . 6 1 7 . 1 . . Blast 4 | . 2 1 1 . . . . . . . . . Sever 7 | . . . . . . . . . . . 7 . Melee Attacks 63 | . . . . . . . . 4 2 . 57 . Impact . | . . . . . . . . . . . . . Slashing 63 | . . . . . . . . 4 2 . 57 . Piercing . | . . . . . . . . . . . . . Sneak Attacks 2 | . . . . . . . . 1 . . 1 . Combat Hostiles . | . . . . . . . . . . . . . Follow-up Attacks 2 | . . . . . . . . . . . 2 . Damage Inflicted 14282 | 151 782 318 1620 397 1317 769 1259 1285 2138 1249 1026 1971 Guns 6515 | 151 52 . 916 157 873 655 1245 1131 1173 162 . . Cannons 4533 | . 715 314 422 . . . . . 928 512 . 1642 Explosions 1937 | . . . 243 232 444 114 . . . 575 . 329 Melee 1111 | . . . . . . . . 85 . . 1026 . Ramming 186 | . 15 4 39 8 . . 14 69 37 . . . Kinetic 7844 | 63 733 314 1338 157 873 655 1245 1131 1173 162 . . Thermal 3282 | 88 34 . . . . . . . 928 512 . 1720 Explosive 1859 | . . . 243 232 444 114 . . . 575 . 251 Electromagnetic . | . . . . . . . . . . . . . Impact . | . . . . . . . . . . . . . Slashing 1111 | . . . . . . . . 85 . . 1026 . Piercing . | . . . . . . . . . . . . . Highest Corruption 5 | . 3 3 3 3 3 3 . 5 . . . . Average Corruption 2 | . 2 3 2 3 3 3 . 1 . . . . Corruption Purged 7 | . . . . . . . . 7 . . . . Corruption Blocked . | . . . . . . . . . . . . . Effects 113 | . 16 8 28 9 29 5 . 18 . . . . Message Errors 28 | . 4 3 4 3 8 2 . 4 . . . . Matter Fused 28 | . 7 2 7 1 6 . . 5 . . . . Heat Flow Errors 12 | . . 1 2 1 6 1 . 1 . . . . Energy Discharges 17 | . 2 . 6 . 5 1 . 3 . . . . Parts Fused 2 | . 1 . 1 . . . . . . . . . Data Loss (minor) 13 | . 1 1 3 2 3 . . 3 . . . . Data Loss (major) 1 | . . . 1 . . . . . . . . . Misfires 5 | . 1 1 1 1 . . . 1 . . . . Alerts 3 | . . . 2 1 . . . . . . . . Weapon Failures 4 | . . . 1 . 1 1 . 1 . . . . Overload Shots . | . . . . . . . . . . . . . Overflow Damage 210 | . . . 9 43 . . . . 36 50 54 18 Projectiles 68 | . . . . . . . . . 36 24 . 8 Explosions 88 | . . . 9 43 . . . . . 26 . 10 Melee 54 | . . . . . . . . . . . 54 . Knockbacks 9 | . 6 1 1 . . . . 1 . . . . Impact 2 | . 1 . . . . . . 1 . . . . Kinetic 7 | . 5 1 1 . . . . . . . . . Secondary . | . . . . . . . . . . . . . Self-Inflicted Damage 297 | . . . . 30 16 . . . . 62 . 189 Shots 11 | . . . . 1 1 . . . . 1 . 8 Rammed 15 | . 2 2 5 . . . 1 4 1 . . . Targets Rammed 20 | . 3 2 5 1 . . 1 7 1 . . . Kicked . | . . . . . . . . . . . . . Crushed 5 | . 1 . . 1 . . . 3 . . . . Highest Temperature 520 | 40 129 204 167 188 253 233 108 56 312 295 . 520 Average Temperature 87 | 11 36 59 36 42 78 97 32 19 113 92 . 193 Received Heat Transfer 2808 | . 165 21 129 . . 279 216 135 537 441 . 885 Effects 14 | . . . . . . 1 . . 4 . . 9 Shutdowns 1 | . . . . . . . . . . . . 1 Energy Bleed 4 | . . . . . . 1 . . 1 . . 2 Interference 3 | . . . . . . . . . 3 . . . Matter Decay 1 | . . . . . . . . . . . . 1 Damage (minor) 2 | . . . . . . . . . . . . 2 Damage (major) 2 | . . . . . . . . . . . . 2 Damage (core) 1 | . . . . . . . . . . . . 1 Siege Activations . | . . . . . . . . . . . . . Martial Activations . | . . . . . . . . . . . . . Shielding Activations . | . . . . . . . . . . . . . Robots Disrupted . | . . . . . . . . . . . . . Combat Hostiles . | . . . . . . . . . . . . . Robots Corrupted . | . . . . . . . . . . . . . Combat Hostiles . | . . . . . . . . . . . . . Parts Fried . | . . . . . . . . . . . . . Impact Corruptions . | . . . . . . . . . . . . . Robots Melted . | . . . . . . . . . . . . . Combat Hostiles . | . . . . . . . . . . . . . Parts Melted 4 | . . . . . . . . . 4 . . . Heat Transferred 3125 | 200 75 . . . . . . . 1800 1000 . 50 Parts Sabotaged . | . . . . . . . . . . . . . Parts Stolen . | . . . . . . . . . . . . . Parts Stripped . | . . . . . . . . . . . . . Power Chain Reactions 1 | . . . . . . . . . . . . 1 Alert | -11 -10 -10 -9 -9 -9 -8 -8 -7 -7 -7 -7 -6 ------- Run | Yrd Mat Min Mat Min Exi Min Mat Fac Low Low Dat Pro Maximum Alert Level 1 | . . 1 . . . . . . . . . . Low Security (%) 99 | 100 100 98 100 100 . 100 100 100 . . . . Level 1 . | . . 1 . . . . . . . . . . Level 2 . | . . . . . . . . . . . . . Level 3 . | . . . . . . . . . . . . . Level 4 . | . . . . . . . . . . . . . Level 5 . | . . . . . . . . . . . . . High Security . | . . . . . . . . . . . . . Max Security . | . . . . . . . . . . . . . Peak Influence 202 | 20 158 202 177 172 . 198 111 105 . . . . Initial 61 | . 3 47 . 16 . . 61 50 . . . . Average 55 | 5 55 79 56 104 . 122 41 32 . . . . Influence Increases 3585 | 35 467 214 596 226 . 308 374 355 375 415 . 220 Destroy 0b10 Robot/C 2340 | . 240 160 360 160 . 240 180 180 300 340 . 180 Destroy 0b10 Robot/NC 250 | 35 55 5 65 5 . . 35 20 5 . . 25 Destroy Leader 448 | . 48 30 102 20 . 40 68 70 40 30 . . Allied During Kill 30 | . . . . . . . . . . 30 . . Successful Hack 97 | . 24 4 4 . . . 29 36 . . . . Disable Machine 135 | . 30 15 . 15 . . 45 30 . . . . Destroy Structure 60 | . 10 . 20 11 . 13 2 4 . . . . Lose Combat Pursuer 225 | . 60 . 45 15 . 15 15 15 30 15 . 15 Influence Decreases 3555 | 30 350 336 554 232 36 150 421 461 232 465 98 190 Entered New Map 427 | . 2 75 . 26 36 . 97 61 3 29 98 . Time Decay 2849 | 30 348 261 465 206 . 140 314 400 209 326 . 150 Lost Part 150 | . . . . . . 10 10 . 20 90 . 20 Lost Ally 40 | . . . . . . . . . . 20 . 20 Purge Threat 89 | . . . 89 . . . . . . . . . Squads Dispatched 15 | . 2 . . . . . 4 8 . 1 . . Investigation 5 | . 2 . . . . . . 3 . . . . Extermination 5 | . . . . . . . . 5 . . . . Reinforcement 2 | . . . . . . . 2 . . . . . Assault 1 | . . . . . . . . . . 1 . . Garrison 2 | . . . . . . . 2 . . . . . Intercept . | . . . . . . . . . . . . . Searches Triggered . | . . . . . . . . . . . . . Construction Impeded . | . . . . . . . . . . . . . Haulers Reinforced . | . . . . . . . . . . . . . Active Scanning Responses . | . . . . . . . . . . . . . Cargo Convoy Interrupts . | . . . . . . . . . . . . . Stealth | -11 -10 -10 -9 -9 -9 -8 -8 -7 -7 -7 -7 -6 --------- Run | Yrd Mat Min Mat Min Exi Min Mat Fac Low Low Dat Pro Distress Signals 7 | . 2 . 1 . . . 1 1 . . . 2 Communications Jammed 5 | . . . . . . . . . . . . 5 Distress Signals 5 | . . . . . . . . . . . . 5 Times Spotted 168 | . 20 8 24 7 6 13 22 11 18 21 4 14 Peak Tracking Total 9 | . 5 6 7 3 9 4 9 3 4 9 2 6 Tactical Retreats 11 | . 3 . 1 1 . 1 1 1 1 1 . 1 Traps | -11 -10 -10 -9 -9 -9 -8 -8 -7 -7 -7 -7 -6 ------- Run | Yrd Mat Min Mat Min Exi Min Mat Fac Low Low Dat Pro Traps Triggered 7 | . 3 . 3 . . . 1 . . . . . Indirectly . | . . . . . . . . . . . . . Trap Hack Attempts . | . . . . . . . . . . . . . Triggered . | . . . . . . . . . . . . . Disarmed . | . . . . . . . . . . . . . Reprogrammed . | . . . . . . . . . . . . . Reused . | . . . . . . . . . . . . . Traps Extracted . | . . . . . . . . . . . . . Installed . | . . . . . . . . . . . . . Triggered . | . . . . . . . . . . . . . Machines | -11 -10 -10 -9 -9 -9 -8 -8 -7 -7 -7 -7 -6 ---------- Run | Yrd Mat Min Mat Min Exi Min Mat Fac Low Low Dat Pro Machines Disabled 18 | . 2 1 . 1 4 . 3 2 1 . 1 3 Max in Single Turn 2 | . 1 1 . 1 1 . 2 2 1 . 1 1 Garrison Access 1 | . . . . . . . . 1 . . . . Machines Repaired . | . . . . . . . . . . . . . Machines Dismantled . | . . . . . . . . . . . . . Machines Sabotaged . | . . . . . . . . . . . . . Overloaded Fab Kills . | . . . . . . . . . . . . . Hacking | -11 -10 -10 -9 -9 -9 -8 -8 -7 -7 -7 -7 -6 --------- Run | Yrd Mat Min Mat Min Exi Min Mat Fac Low Low Dat Pro Machines Accessed 42 | . 8 1 10 . 1 . 6 12 . . 3 1 Terminals 29 | . 7 1 9 . . . 5 6 . . . 1 Fabricators 2 | . . . . . . . . 2 . . . . Repair Stations 1 | . . . . . . . . 1 . . . . Recycling Units 1 | . 1 . . . . . . . . . . . Scanalyzers 4 | . . . 1 . . . 1 2 . . . . Garrison Access 1 | . . . . . . . . 1 . . . . Total Hacks 133 | . 29 3 28 . 1 . 19 29 . . 22 2 Successful 77 | . 14 1 13 . 1 . 15 11 . . 22 . Failed 55 | . 14 2 15 . . . 4 18 . . . 2 Catastrophic 8 | . 2 1 1 . . . 2 2 . . . . Database Lockouts 1 | . 1 . . . . . . . . . . . Manual 65 | . 22 1 18 . . . 12 12 . . . . Terminals 89 | . 28 3 26 . . . 16 14 . . . 2 Fabricators 8 | . . . . . . . . 8 . . . . Repair Stations 2 | . . . . . . . . 2 . . . . Recycling Units 1 | . 1 . . . . . . . . . . . Scanalyzers 9 | . . . 2 . . . 3 4 . . . . Garrison Access 1 | . . . . . . . . 1 . . . . Terminal Hacks 46 | . 7 1 5 . 1 . 6 4 . . 22 . Record 7 | . . . . . 1 . . . . . 6 . Part Schematic 12 | . 1 . . . . . . 1 . . 10 . Robot Schematic 3 | . . . . . . . . . . . 3 . Robot Analysis 3 | . 2 . 1 . . . . . . . . . Prototype ID Bank 7 | . 1 . 2 . . . 1 . . . 3 . Branch Access Points 1 | . . . . . . . . 1 . . . . Terminal Index 2 | . . . . . . . 1 1 . . . . Alert Level 1 | . . . . . . . 1 . . . . . Unreport Threat 1 | . . . 1 . . . . . . . . . Locate Traps 2 | . 1 . 1 . . . . . . . . . Dispatch Records 1 | . . 1 . . . . . . . . . . Patrol Status 1 | . . . . . . . 1 . . . . . Recall Investigation 1 | . . . . . . . . 1 . . . . Hauler Manifests 2 | . 1 . . . . . 1 . . . . . Registered Components 1 | . . . . . . . 1 . . . . . Zone Layout 1 | . 1 . . . . . . . . . . . Fabricator Hacks 1 | . . . . . . . . 1 . . . . Load Schematic 1 | . . . . . . . . 1 . . . . Repair Station Hacks 2 | . . . . . . . . 2 . . . . Scan Component 1 | . . . . . . . . 1 . . . . Repair 1 | . . . . . . . . 1 . . . . Recycling Unit Hacks . | . . . . . . . . . . . . . Scanalyzer 6 | . . . 2 . . . 3 1 . . . . Insert Component 2 | . . . 1 . . . 1 . . . . . Analyze 1 | . . . . . . . 1 . . . . . Retrieve Study 3 | . . . 1 . . . 1 1 . . . . Garrison Access Hacks 1 | . . . . . . . . 1 . . . . Seal Access 1 | . . . . . . . . 1 . . . . Unauthorized Hacks 20 | . 7 . 5 . . . 6 2 . . . . Terminals 20 | . 7 . 5 . . . 6 2 . . . . Botnet 8 | . 2 . 2 . . . 2 2 . . . . Disrupt 1 | . . . 1 . . . . . . . . . Skim 11 | . 5 . 2 . . . 4 . . . . . Fabricators . | . . . . . . . . . . . . . Repair Stations . | . . . . . . . . . . . . . Recycling Units . | . . . . . . . . . . . . . Scanalyzers . | . . . . . . . . . . . . . Garrison Access . | . . . . . . . . . . . . . Data Cores Recovered . | . . . . . . . . . . . . . Used . | . . . . . . . . . . . . . Hacking Detections 35 | . 8 1 9 . . . 6 10 . . . 1 Full Trace Events 4 | . 1 . . . . . . 3 . . . . Feedback Events . | . . . . . . . . . . . . . Feedback Blocked . | . . . . . . . . . . . . . Robot Schematics Acquired 3 | . . . . . . . . . . . 3 . Robots Built . | . . . . . . . . . . . . . Authchips . | . . . . . . . . . . . . . Time . | . . . . . . . . . . . . . Total Robot Build Rating . | . . . . . . . . . . . . . Part Schematics Acquired 13 | . 1 . . . . . 1 1 . . 10 . Parts Built . | . . . . . . . . . . . . . Authchips . | . . . . . . . . . . . . . Time . | . . . . . . . . . . . . . Total Part Build Rating . | . . . . . . . . . . . . . Part Studies Acquired 3 | . . . 1 . . . 1 1 . . . . Parts Repaired 1 | . . . . . . . . 1 . . . . Time 38 | . . . . . . . . 38 . . . . Parts Recycled . | . . . . . . . . . . . . . Recycled Matter . | . . . . . . . . . . . . . Retrieved Matter . | . . . . . . . . . . . . . Retrieved Components . | . . . . . . . . . . . . . Parts Scanalyzed 1 | . . . . . . . 1 . . . . . Part Schematics Acquired 1 | . . . . . . . 1 . . . . . Parts Damaged . | . . . . . . . . . . . . . Bothacking | -11 -10 -10 -9 -9 -9 -8 -8 -7 -7 -7 -7 -6 ------------ Run | Yrd Mat Min Mat Min Exi Min Mat Fac Low Low Dat Pro Used RIF Installer . | . . . . . . . . . . . . . Robots Hacked . | . . . . . . . . . . . . . Non-combat . | . . . . . . . . . . . . . Combat . | . . . . . . . . . . . . . Robot Hacks Applied . | . . . . . . . . . . . . . Relay Couplers Released . | . . . . . . . . . . . . . Fabnet Peak Effective % . | . . . . . . . . . . . . . Robots Rewired 6 | . . . . . . . . . . 2 . 4 Allies Hacked . | . . . . . . . . . . . . . Hacks Repelled . | . . . . . . . . . . . . . Allies | -11 -10 -10 -9 -9 -9 -8 -8 -7 -7 -7 -7 -6 -------- Run | Yrd Mat Min Mat Min Exi Min Mat Fac Low Low Dat Pro Total Allies 6 | . . . . . . . . . . 2 . 4 Largest Group 4 | . . . . . . . . . . 2 . 4 Highest-Rated Group 56 | . . . . . . . . . . 46 . 56 Highest-Rated Ally 30 | . . . . . . . . . . 30 . 14 Total Orders . | . . . . . . . . . . . . . Ally Attacks 15 | . . . . . . . . . . 11 . 4 Total Damage 183 | . . . . . . . . . . 183 . . Kills . | . . . . . . . . . . . . . Allies Corrupted . | . . . . . . . . . . . . . Allies Melted . | . . . . . . . . . . . . . Intel | -11 -10 -10 -9 -9 -9 -8 -8 -7 -7 -7 -7 -6 ------- Run | Yrd Mat Min Mat Min Exi Min Mat Fac Low Low Dat Pro Active Infowar (turns) 9974 | 17 1234 738 1659 322 667 97 899 1737 914 723 738 229 Seismic 9974 | 17 1234 738 1659 322 667 97 899 1737 914 723 738 229 Jamming 25 | . . . . . . . . . . . . 25 Robot Analysis Total 3 | . 2 . 1 . . . . . . . . . Derelict Logs Recovered 6 | . . 3 . . . . . . 2 1 . . Drone Launches . | . . . . . . . . . . . . . Drone Recoveries . | . . . . . . . . . . . . . Exploration | -11 -10 -10 -9 -9 -9 -8 -8 -7 -7 -7 -7 -6 ------------- Run | Yrd Mat Min Mat Min Exi Min Mat Fac Low Low Dat Pro Turns Passed 11370 | 111 1234 738 1783 421 1154 296 899 1761 1158 723 740 352 Spaces Moved 6144 | 52 657 428 986 245 610 133 464 1012 584 469 398 106 Core 105 | 52 53 . . . . . . . . . . . Treads 4722 | . 403 428 816 245 610 133 464 1012 584 27 . . Legs 1147 | . 201 . . . . . . . . 442 398 106 Wheels 170 | . . . 170 . . . . . . . . . Hover . | . . . . . . . . . . . . . Flight . | . . . . . . . . . . . . . Fastest Speed 50 | 50 120 160 120 155 145 145 152 150 150 125 125 125 Average Speed 148 | 101 150 160 150 155 153 166 152 151 155 127 125 125 Slowest Speed 237 | 200 200 160 225 155 235 230 152 154 161 237 126 125 Overloaded Moves . | . . . . . . . . . . . . . Propulsion Burnouts . | . . . . . . . . . . . . . Robots Hopped . | . . . . . . . . . . . . . Potential Cave-ins . | . . . . . . . . . . . . . Cave-ins Triggered . | . . . . . . . . . . . . . Exploration Rate (%) 55 | 5 90 94 74 50 63 38 48 26 70 61 81 17 Regions Visited 12 Branch Regions 8 Pre-discovered Areas 4 | . 1 1 . . 1 . . . . . 1 . Known Exits Taken 6 | . 1 1 1 . . 1 . 1 . 1 . . Unknown Exits Taken 6 | 1 . . . 1 1 . 1 . 1 . 1 . Scrap Searched 5 | . . 2 . . . . . . 3 . . . Spaces Dug 76 | . 2 . . 11 . 13 . 3 2 . . 45 Terrain Destroyed 193 | . 8 . 26 25 15 14 1 4 2 53 . 45 Melee 5 | . . . . . . . . 3 2 . . . Projectile 5 | . 3 . . . . 1 1 . . . . . AOE 182 | . 5 . 26 25 15 13 . . . 53 . 45 Terrain Rammed . | . . . . . . . . . . . . . Walls Destroyed . | . . . . . . . . . . . . . Machines Disabled . | . . . . . . . . . . . . . Actions | -11 -10 -10 -9 -9 -9 -8 -8 -7 -7 -7 -7 -6 --------- Run | Yrd Mat Min Mat Min Exi Min Mat Fac Low Low Dat Pro Total 7543 | 84 791 453 1172 270 778 163 573 1192 733 548 560 226 Wait 354 | 2 45 3 34 14 42 2 30 58 39 18 35 32 Move 6132 | 51 656 427 985 244 609 132 463 1011 583 468 397 106 Hop . | . . . . . . . . . . . . . Pick Up 174 | 9 13 2 29 . 33 1 10 24 9 3 37 4 Fast Attach 18 | 4 2 . 2 . 3 . 1 1 1 3 1 . Attach 49 | 3 2 . 4 . 6 1 4 3 5 10 7 4 Detach . | . . . . . . . . . . . . . Swap 133 | . 7 2 27 3 15 8 10 28 19 . 7 7 Drop 169 | 1 10 3 33 . 34 . 12 31 16 1 26 2 Fire 392 | 14 53 14 53 8 36 19 42 25 58 26 . 44 Melee 56 | . . . . . . . . 4 2 . 50 . Ram . | . . . . . . . . . . . . . Kick . | . . . . . . . . . . . . . Crush 20 | . 3 2 5 1 . . 1 7 1 . . . Escape Stasis . | . . . . . . . . . . . . . Rewire 46 | . . . . . . . . . . 19 . 27 Trap . | . . . . . . . . . . . . . Miscellaneous . | . . . . . . . . . . . . . Route ------- -11/Scrapyard -10/Materials (discovered 5 exits: *Mat x3 / *Min / Sub) -10/Mines (discovered 3 exits: *Mat x2 / *Sub) -9/Materials (discovered 7 exits: *Mat x3 / *Min x2 / [*Sto x2]) -9/Mines -9/Exiles -8/Mines -8/Materials (discovered 2 exits: *Fac x2) -7/Factory (discovered 2 exits: *Low x2) -7/Lower Caves -7/Lower Caves -7/Data Miner -6/Proximity Caves (discovered 1 exit: [*Fac]) History --------- Turn | Location | Event 4 | -11/Scrapyard | Discovered new exit (range 16) 112 | -11/Scrapyard | Entered Materials 128 | -10/Materials | Discovered new exit (range 10) 280 | -10/Materials | Discovered new exit (range 9) 310 | -10/Materials | Build established: Mutant 459 | -10/Materials | Discovered new exit (range 3) 835 | -10/Materials | Discovered new exit (range 3) 1048 | -10/Materials | Identified exit to Subcaves 1048 | -10/Materials | Learned location of 1 exit from Materials 1082 | -10/Materials | Identified exit to Materials 1082 | -10/Materials | Identified exit to Mines 1122 | -10/Materials | Learned location of 1 exit from Storage 1125 | -10/Materials | Learned Storage trap positions 1127 | -10/Materials | Learned Storage stockpile data 1140 | -10/Materials | Learned location of Mines (-10) 1155 | -10/Materials | Central database locked down 1346 | -10/Materials | Entered Mines 1389 | -10/Mines | Met a Derelict bent on vengeance 1467 | -10/Mines | Learned location of Storage (-9) 1475 | -10/Mines | Learned Materials emergency access door positions 1702 | -10/Mines | Discovered exit to Subcaves (range 5) 1948 | -10/Mines | Received a Rocket Launcher from a helpful Derelict 1969 | -10/Mines | Learned Materials terminal intel 2084 | -10/Mines | Entered Materials 2084 | -9/Materials | Evolved 2 slots: Propulsion x1, Weapon x1 2085 | -9/Materials | Identified exit to Mines 2086 | -9/Materials | Identified exit to Materials 2088 | -9/Materials | Loaded intel: 12 terminal locations 2374 | -9/Materials | Discovered new exit (range 5) 2375 | -9/Materials | Build established: Gunner 2473 | -9/Materials | Discovered exit to Materials (range 15) 3306 | -9/Materials | Build established: Scavenger-Gunner 3309 | -9/Materials | Discovered exit to Materials (range 13) 3550 | -9/Materials | Discovered new exit (range 7) 3867 | -9/Materials | Entered Mines 3879 | -9/Mines | Assembled infested the area 4282 | -9/Mines | Discovered new exit (range 5) 4288 | -9/Mines | Entered Exiles 4335 | -9/Exiles | Met 8R-AWN 4361 | -9/Exiles | Met EX-HEX 4423 | -9/Exiles | Met EX-DEC 4428 | -9/Exiles | Learned location of Zion (-6) 4589 | -9/Exiles | Build established: Mutant 5004 | -9/Exiles | Attacked by the Exiles 5105 | -9/Exiles | Core integrity fell below 50% 5160 | -9/Exiles | Destroyed 8R-AWN 5167 | -9/Exiles | Found Prototype Ballistic Gun 5167 | -9/Exiles | Identified 8R-AWN's Boregun 5178 | -9/Exiles | Lost 4 parts (1n1u2w) 5259 | -9/Exiles | Build established: Tank 5291 | -9/Exiles | Core integrity fell below 20% 5426 | -9/Exiles | Discovered new exit (range 14) 5442 | -9/Exiles | Entered Mines 5719 | -8/Mines | Discovered exit to Materials (range 6) 5738 | -8/Mines | Entered Materials 5738 | -8/Materials | Evolved 2 slots: Propulsion x1, Utility x1 6037 | -8/Materials | Build established: Scavenger-Tank 6164 | -8/Materials | Discovered new exit (range 3) 6392 | -8/Materials | Garrison activated, responded to threat 6578 | -8/Materials | Discovered new exit (range 13) 6584 | -8/Materials | Garrison activated, responded to threat 6637 | -8/Materials | Entered Factory 6637 | -7/Factory | Evolved 2 slots: Propulsion x1, Utility x1 6688 | -7/Factory | Repaired Minigun+ 6987 | -7/Factory | Identified exit to Lower Caves 7691 | -7/Factory | Build established: Tank 8367 | -7/Factory | Found Prototype Launcher 8367 | -7/Factory | Identified Rocket Array 8398 | -7/Factory | Entered Lower Caves 8600 | -7/Lower Caves | Spotted B-75 Beast 8663 | -7/Lower Caves | Destroyed B-75 Beast 8753 | -7/Lower Caves | Learned Factory trap positions 8924 | -7/Lower Caves | Attacked by a delusional Derelict stockpiling parts 9255 | -7/Lower Caves | Attracted the attention of an 0b10 checkpoint 9315 | -7/Lower Caves | Learned Factory emergency access door positions 9364 | -7/Lower Caves | Build established: Mutant 9542 | -7/Lower Caves | Discovered new exit (range 8) 9556 | -7/Lower Caves | Entered another Lower Caves area 9596 | -7/Lower Caves | Attracted the attention of an 0b10 outpost 9646 | -7/Lower Caves | Core integrity fell below 50% 9691 | -7/Lower Caves | Lost 9 parts (1p4n2u2w) 9806 | -7/Lower Caves | Entered a destroyed Warlord outpost 9892 | -7/Lower Caves | Identified exit to Data Miner 10061 | -7/Lower Caves | Build established: Scavenger-Tank 10279 | -7/Lower Caves | Entered Data Miner 10285 | -7/Data Miner | Discovered new exit (range 8) 10323 | -7/Data Miner | Met Data Miner 10355 | -7/Data Miner | Learned location of Section 7 (-3) 10355 | -7/Data Miner | Acquired the access code to Warlord's prototype stash 10367 | -7/Data Miner | Received God Mode back door access code from Data Miner 10420 | -7/Data Miner | Data Conduit disabled 10526 | -7/Data Miner | Found Prototype Device 10576 | -7/Data Miner | Build established: Gladiator 10840 | -7/Data Miner | Found Prototype Device 10872 | -7/Data Miner | Identified Exp. Thermal Shield 11019 | -7/Data Miner | Entered Proximity Caves 11022 | -6/Proximity Caves | Spotter reported a threat 11029 | -6/Proximity Caves | Snuck into a huge 0b10 base via the rear entrance 11269 | -6/Proximity Caves | Lost 4 allies 11310 | -6/Proximity Caves | Discovered new exit (range 4) 11343 | -6/Proximity Caves | Core integrity fell below 20% 11372 | -6/Proximity Caves | Core destroyed Last Messages --------------- 11319_ G-50 Soldier springs to life. 11328_ Critical hit (Burn: +37). 11334_ G-50 Soldier destroyed. 11338_ Overheating: Matter decay (-62). 11339_ Critical hit (Burn: +37). 11340_ Carbon-fiber Leg fries itself beyond repair. 11347_ Overheating: Neutron Cannon damaged (-18). 11351_ Lgt. Angular Momentum Engine fries itself beyond repair. 11359_ G-50 Soldier destroyed. 11367_ Overheating: Rnf. Fission Core damaged (-41). 11368_ Critical hit (Burn: +37). 11370_ Overheating: Hcp. Storage Unit damaged (-102). 11370_ Overheating: Enh. Flexi-carbon Leg damaged (-3). 11372_ Overheating: Core damaged (-140). Map ----- +----------------------------------------------------+ | | | ????????????????????????????????????????????? | | ????????????????????????????????????????????? | | ????????????????????????????????????????????? | | ????????????????????????????????????????????? | | ????????????????????????????????????????????? | | ????????????????????????????????????????????? | | ????????????????????????????????????????????? | | ????????????????????????????????????????????? | | ????????????????????????????????????????????? | | ????????????????????????????????????????????? | | ????????????????????????????????????????????? | | ????????????????????????????????????????????? | | ????????????????????????????????????????????? | | ????????????????????????????????????????????? | | ????????????????????????????????????????????? | | ????????????????????????????????????????????? | | ????????????????????????????????????????????? | | ?????????????????###########????????????????? | | ?????????????????# "![#????????????????? | | ?????????????????# "![#????????????????? | | ?????????????????# "![#????????????????? | | ??????????##+##### "" #????????????????? | | ?????????? #????????????????? | | ?????????? < #????????????????? | | ?????????? @ #????????????????? | | ????????????#### g#????????????????? | | ????????????#b % %]#????????????????? | | ????????????#b # g ]#????????????????? | | ????????????#b???# []#????????????????? | | ?????????????????####" #####????????????????? | | ???#????????????????# T#???????????????????? | | ???# ???????????????# ##???????????????????? | | ???# ??????????????# #????????????????????? | | #### ####?########## #????????????????????? | | ?# # #????????????????????? | | # # #????????????????????? | | # # #????????????????????? | | ?? ? # #????????????????????? | | ???"""" ###++##### #????????????????????? | | ???"""" #????????????????????? | | ???"""" #????????????????????? | | ???"""" ####### ##+#####????????????????? | | ? ??????# #=[%/! #????????????????? | | ???????# %#!!=%= #????????????????? | | ???????# #=%/= #????????????????? | | ????????#% # !/ #????????????????? | | #### ## ????????#% # #????????????????? | | ???# ?#?????????# # %#????????????????? | | ???# ????????????# # #????????????????? | +----------------------------------------------------+ Best States ------------- Heat Dissipation 72 Energy Generation 19 Energy Capacity 310 Matter Stores 300 Matter Capacity 300 Sight Range 16 Terrain Scan Density 10 Jamming Range 12 Armor Coverage 825 Resistance: KI 30 Resistance: TH 30 Evasion (%) 55 Melee Accuracy 5 Recoil Reduction 5 Particle Charging 25 Item Schematics ----------------- Hcp. Storage Unit | -10/Materials | Hacked Imp. Light Armor Plating | -8/Materials | Scanalyzed Lgt. Armored Exoskeleton | -7/Factory | Hacked Combat Drone Bay | -7/Data Miner | Free Lgt. Regenerative Plating | -7/Data Miner | Free Biomechanical Wings | -7/Data Miner | Free Exp. Targeting Computer | -7/Data Miner | Free Imp. Lightning Gun | -7/Data Miner | Free Thunder Leg | -7/Data Miner | Free Imp. Component Analysis Suite | -7/Data Miner | Free Adv. Plasma Cannon | -7/Data Miner | Free Adv. Target Analyzer | -7/Data Miner | Free Hardcell Cannon | -7/Data Miner | Free Robot Schematics ------------------ G-50 Soldier | -7/Data Miner | Free L-41 Fighter | -7/Data Miner | Free H-66 Slayer | -7/Data Miner | Free Fabricated ------------ Nothing Repaired ---------- Minigun | 39% | -7/Factory Studied --------- Hvy. Assault Rifle | -9/Materials | Hacked Minigun | -8/Materials | Hacked Plasma Cannon | -7/Factory | Hacked Alien Tech Used ----------------- None Achievements -------------- Who Guards The Bodyguard? Challenges ------------ None Game ------ Seed OmegaCouplerBank Manual? 0 Play Time 01:35:01 Cumulative 422.0 hours Start 2025.11.23 @ 21:13:27 End 2025.11.24 @ 23:12:20 Sessions 4 Manual Loads 0 Difficulty Rogue Special Mode None Game No. 270 Rogue 270 Adventurer 0 Explorer 0 Win Type - Total 7 Types 4/0/2/0/0/0/0/1/0/0 Lore% 82 Gallery% 80 Achievement% 56 Wizard Run 0 Options --------- Layout 1 ASCII 0 Keyboard 0 Movement Numpad Keybinds 0 Fullscreen 1 Font 24/Smallcaps Map View 50x40 Zoom Use 0% Tactical HUD 1 Map Filters NONE Filters NONE Steam 1 RUN: 44425866-979d-4b2c-aa09-9e7598c8e82f